Workbook

Sheet はじめに
A2: 事務組合報奨金交付申請書作成ソフト | G2: 「コンテンツの有効化」ボタンをクリックしてから入力してください。
B7: 令和 | C7: 8 | E7: 年度
B9: 提出先 | C9: 愛知 | E9: 労働局

Sheet 基本項目入力
A1: 労働保険事務組合の基本項目を入力してください
A3: 【基本項目】 | C3: ※水色欄入力
A4: 区分 | B4: 入力項目
A5: 労働保険事務組合の名称
A6: 郵便番号
A7: 所在地
A8: 電話番号
A9: 代表者氏名
A10: 作成者氏名
A12: 【金融機関】
A13: 区分 | B13: 入力項目
A14: 金融機関の名称
A15: ゆうちょ銀行の場合は所在地
A16: 店名 | C16: 店
A17: 口座番号
A18: 名義人

Sheet データ入力
A1: 「事務組合報奨金交付申請書」データ入力表
A3: 番号 | B3: 基幹番号 | C3: 枝番号 | D3: 年度途中 | E3: 区分 | G3: ① | H3: ② | I3: ③ | J3: ④ | K3: ⑤ | L3: ⑥ | M3: ⑦ | N3: ⑧ | O3: ⑨ | P3: ⑩ | Q3: 一般拠出金納付状況
E4: 労働者数 | F4: 二保険 | G4: 確定保険料総額 | H4: 追徴金 | I4: 延滞金 | J4: (①＋②＋③) | K4: ①に係る 納付済額 | L4: ⑤のうち督促 を受けた額 | M4: (⑤－⑥) | N4: ②に係る 納付済額 | O4: ③に係る 納付済額 | P4: (⑤＋⑧＋⑨) | Q4: 総額 | R4: 納付済額
A5: =ROW()-4 -> 1 | J5: =SUM(G5:I5) -> 0 | M5: =(K5-L5) -> 0 | P5: =SUM(K5,N5,O5) -> 0
A6: =ROW()-4 -> 2 | J6: =SUM(G6:I6) -> 0 | M6: =(K6-L6) -> 0 | P6: =SUM(K6,N6,O6) -> 0
A7: 3 | J7: 0 | M7: 0 | P7: 0
A8: 4 | J8: 0 | M8: 0 | P8: 0
A9: 5 | J9: 0 | M9: 0 | P9: 0
A10: 6 | J10: 0 | M10: 0 | P10: 0
A11: 7 | J11: 0 | M11: 0 | P11: 0
A12: 8 | J12: 0 | M12: 0 | P12: 0
A13: 9 | J13: 0 | M13: 0 | P13: 0
A14: =ROW()-4 -> 10 | J14: 0 | M14: 0 | P14: 0
A15: =ROW()-4 -> 11 | J15: 0 | M15: 0 | P15: 0
A16: 12 | J16: 0 | M16: 0 | P16: 0
A17: 13 | J17: 0 | M17: 0 | P17: 0
A18: 14 | J18: 0 | M18: 0 | P18: 0
A19: 15 | J19: 0 | M19: 0 | P19: 0
A20: 16 | J20: 0 | M20: 0 | P20: 0
A21: 17 | J21: 0 | M21: 0 | P21: 0
A22: 18 | J22: 0 | M22: 0 | P22: 0
A23: 19 | J23: 0 | M23: 0 | P23: 0
A24: 20 | J24: 0 | M24: 0 | P24: 0
A25: 21 | J25: 0 | M25: 0 | P25: 0
A26: 22 | J26: 0 | M26: 0 | P26: 0
A27: 23 | J27: 0 | M27: 0 | P27: 0
A28: 24 | J28: 0 | M28: 0 | P28: 0
A29: 25 | J29: 0 | M29: 0 | P29: 0
A30: 26 | J30: 0 | M30: 0 | P30: 0
A31: 27 | J31: 0 | M31: 0 | P31: 0
A32: 28 | J32: 0 | M32: 0 | P32: 0
A33: 29 | J33: 0 | M33: 0 | P33: 0
A34: 30 | J34: 0 | M34: 0 | P34: 0
A35: 31 | J35: 0 | M35: 0 | P35: 0
A36: 32 | J36: 0 | M36: 0 | P36: 0
A37: 33 | J37: 0 | M37: 0 | P37: 0
A38: 34 | J38: 0 | M38: 0 | P38: 0
A39: 35 | J39: 0 | M39: 0 | P39: 0
A40: 36 | J40: 0 | M40: 0 | P40: 0
A41: 37 | J41: 0 | M41: 0 | P41: 0
A42: 38 | J42: 0 | M42: 0 | P42: 0
A43: 39 | J43: 0 | M43: 0 | P43: 0
A44: =ROW()-4 -> 40 | J44: 0 | M44: 0 | P44: 0
A45: =ROW()-4 -> 41 | J45: 0 | M45: 0 | P45: 0
A46: 42 | J46: 0 | M46: 0 | P46: 0
A47: 43 | J47: 0 | M47: 0 | P47: 0
A48: 44 | J48: 0 | M48: 0 | P48: 0
A49: 45 | J49: 0 | M49: 0 | P49: 0
A50: 46 | J50: 0 | M50: 0 | P50: 0
A51: 47 | J51: 0 | M51: 0 | P51: 0
A52: 48 | J52: 0 | M52: 0 | P52: 0
A53: 49 | J53: 0 | M53: 0 | P53: 0
A54: 50 | J54: 0 | M54: 0 | P54: 0
A55: 51 | J55: 0 | M55: 0 | P55: 0
A56: 52 | J56: 0 | M56: 0 | P56: 0
A57: 53 | J57: 0 | M57: 0 | P57: 0
A58: 54 | J58: 0 | M58: 0 | P58: 0
A59: 55 | J59: 0 | M59: 0 | P59: 0
A60: 56 | J60: 0 | M60: 0 | P60: 0
A61: 57 | J61: 0 | M61: 0 | P61: 0
A62: 58 | J62: 0 | M62: 0 | P62: 0
A63: 59 | J63: 0 | M63: 0 | P63: 0
A64: 60 | J64: 0 | M64: 0 | P64: 0
A65: 61 | J65: 0 | M65: 0 | P65: 0
A66: 62 | J66: 0 | M66: 0 | P66: 0
A67: 63 | J67: 0 | M67: 0 | P67: 0
A68: 64 | J68: 0 | M68: 0 | P68: 0
A69: 65 | J69: 0 | M69: 0 | P69: 0
A70: 66 | J70: =SUM(G70:I70) -> 0 | M70: 0 | P70: 0
A71: 67 | J71: 0 | M71: 0 | P71: 0
A72: 68 | J72: 0 | M72: 0 | P72: 0
A73: 69 | J73: 0 | M73: 0 | P73: 0
A74: 70 | J74: 0 | M74: 0 | P74: 0

Sheet 1
B1: 様式第１号
I2: ="令和"&はじめに!C7&"年度労働保険事務組合報奨金交付申請書(事務組合控)" -> 令和8年度労働保険事務組合報奨金交付申請書(事務組合控) | BO2: ( 枚のうち 枚目)
B5: 下記のとおり報奨金の交付を請求します。 | AE5: 令和 | AI5: 年 | AL5: 月 | AO5: 日 | AR5: (振込を希望する金融機関)
AQ6: 金融機関 | AR6: （名称） | BE6: ゆうちょ銀行 | BF6: （名称）
AR7: =IF(基本項目入力!C14="ゆうちょ銀行","",基本項目入力!B14) -> 0 | AV7: =基本項目入力!C14 -> 0 | AY7: =基本項目入力!B16 -> 0 | BC7: 店 | BF7: =IF(基本項目入力!C14="ゆうちょ銀行",基本項目入力!B14,"") -> 
B8: =はじめに!C9 -> 愛知 | K8: 労働保険事務組合の 名称 | Q8: =基本項目入力!B5 -> 0 | AF8: 電話番号 | AJ8: =基本項目入力!B8 -> 0
I9: 労働局長 殿
AR10: （口座）
K11: 所在地 | Q11: =基本項目入力!B7 -> 0 | AF11: 郵便番号 | AJ11: =基本項目入力!B6 -> 0 | AS11: =基本項目入力!C17 -> 0 | AW11: 第 | AX11: =基本項目入力!B17 -> 0 | BC11: 号 | BF11: （所在地）
BF12: =IF(基本項目入力!C14="ゆうちょ銀行",基本項目入力!B15,"") -> 
AR13: （名義人）
K14: 代表者氏名 | Q14: =基本項目入力!B9 -> 0 | AD14: 記名又は署名 | AF14: 作成者氏名 | AJ14: =基本項目入力!B10 -> 0 | AR14: =基本項目入力!B18 -> 0
B22: 【令和4年度概算・確定保険料納付状況】
B23: 基幹番号 | H23: ① | O23: ="令和 "&はじめに!C7-1&" 年度概算・" -> 令和 7 年度概算・ | W23: ④ | AB23: ⑤ | AG23: ⑥ | AL23: ⑦ | AQ23: ⑧ | AU23: ⑨ | AY23: ⑩ | BD23: 規模・保険関係別委託事業数
H24: ="令和 "&はじめに!C7-1&" 年度" -> 令和 7 年度 | O24: 確定保険料に係る | AB24: ①に係る 納付済額 | AG24: ⑤のうち督促 を受けた額 | AL24: (⑤ － ⑥) | AQ24: ②に係る 納付済額 | AU24: ③に係る 納付済額 | AY24: (⑤＋⑧＋⑨)
H25: 確定保険料総額 | O25: ② | S25: ③ | W25: (①＋②＋③) | BD25: ⑪ | BE25: 甲 | BH25: ⑫ | BI25: 乙
O26: 追徴金 | S26: 延滞金 | BD26: Ａ | BF26: Ｂ | BH26: Ａ | BJ26: Ｂ
B42: 小計 | W42: イ | AL42: ロ | AY42: ハ | BD42: ニ | BF42: ホ | BH42: ヘ | BJ42: ト
H43: =SUM(H27:N41) -> 0 | O43: =SUM(O27:R41) -> 0 | S43: =SUM(S27:V41) -> 0 | W43: =SUM(W27:AA41) -> 0 | AB43: =SUM(AB27:AF41) -> 0 | AG43: =SUM(AG27:AK41) -> 0 | AL43: =SUM(AL27:AP41) -> 0 | AQ43: =SUM(AQ27:AT41) -> 0 | AU43: =SUM(AU27:AX41) -> 0 | AY43: =SUM(AY27:BC41) -> 0 | BD43: =SUM(BD27:BE41) -> 0 | BF43: =SUM(BF27:BG41) -> 0 | BH43: =SUM(BH27:BI41) -> 0 | BJ43: =SUM(BJ27:BK41) -> 0

Sheet 1個別分 (hidden)
B1: 様式第１号 | AT1: 年度途中（個別分）詳細
I2: ="令和"&はじめに!C7&"年度労働保険事務組合報奨金交付申請書(事務組合控)" -> 令和8年度労働保険事務組合報奨金交付申請書(事務組合控) | BO2: ( 枚のうち 枚目)
B5: 下記のとおり報奨金の交付を請求します。 | AE5: 令和 | AI5: 年 | AL5: 月 | AO5: 日 | AR5: (振込を希望する金融機関)
AQ6: 金融機関 | AR6: （名称） | BE6: ゆうちょ銀行 | BF6: （名称）
AR7: =IF(基本項目入力!C14="ゆうちょ銀行","",基本項目入力!B14) -> 0 | AV7: =基本項目入力!C14 -> 0 | AY7: =基本項目入力!B16 -> 0 | BC7: 店 | BF7: =IF(基本項目入力!C14="ゆうちょ銀行",基本項目入力!B14,"") -> 
B8: =はじめに!C9 -> 愛知 | K8: 労働保険事務組合の 名称 | Q8: =基本項目入力!B5 -> 0 | AF8: 電話番号 | AJ8: =基本項目入力!B8 -> 0
I9: 労働局長 殿
AR10: （口座）
K11: 所在地 | Q11: =基本項目入力!B7 -> 0 | AF11: 郵便番号 | AJ11: =基本項目入力!B6 -> 0 | AS11: =基本項目入力!C17 -> 0 | AW11: 第 | AX11: =基本項目入力!B17 -> 0 | BC11: 号 | BF11: （所在地）
BF12: =IF(基本項目入力!C14="ゆうちょ銀行",基本項目入力!B15,"") -> 
AR13: （名義人）
K14: 代表者氏名 | Q14: =基本項目入力!B9 -> 0 | AD14: 記名又は署名 | AF14: 作成者氏名 | AJ14: =基本項目入力!B10 -> 0 | AR14: =基本項目入力!B18 -> 0
B22: 【令和3年度概算・確定保険料納付状況】
B23: 基幹番号 | H23: ① | O23: ='1'!O23:V23 -> 令和 7 年度概算・ | W23: ④ | AB23: ⑤ | AG23: ⑥ | AL23: ⑦ | AQ23: ⑧ | AU23: ⑨ | AY23: ⑩ | BD23: 規模・保険関係別委託事業数
H24: ='1'!H24:N24 -> 令和 7 年度 | O24: ='1'!O24:V24 -> 確定保険料に係る | AB24: ①に係る 納付済額 | AG24: ⑤のうち督促 を受けた額 | AL24: (⑤ － ⑥) | AQ24: ②に係る 納付済額 | AU24: ③に係る 納付済額 | AY24: (⑤＋⑧＋⑨)
H25: ='1'!H25:N25 -> 確定保険料総額 | O25: ② | S25: ③ | W25: (①＋②＋③) | BD25: ⑪ | BE25: 甲 | BH25: ⑫ | BI25: 乙
O26: 追徴金 | S26: 延滞金 | BD26: Ａ | BF26: Ｂ | BH26: Ａ | BJ26: Ｂ
B42: 小計 | W42: イ | AL42: ロ | AY42: ハ | BD42: ニ | BF42: ホ | BH42: ヘ | BJ42: ト
H43: =SUM(H27:N41) -> 0 | O43: =SUM(O27:R41) -> 0 | S43: =SUM(S27:V41) -> 0 | W43: =SUM(W27:AA41) -> 0 | AB43: =SUM(AB27:AF41) -> 0 | AG43: =SUM(AG27:AK41) -> 0 | AL43: =SUM(AL27:AP41) -> 0 | AQ43: =SUM(AQ27:AT41) -> 0 | AU43: =SUM(AU27:AX41) -> 0 | AY43: =SUM(AY27:BC41) -> 0 | BD43: =SUM(BD27:BE41) -> 0 | BF43: =SUM(BF27:BG41) -> 0 | BH43: =SUM(BH27:BI41) -> 0 | BJ43: =SUM(BJ27:BK41) -> 0

Sheet １②
BO1: ( 枚のうち 枚目)
B3: ="【令和"&はじめに!C7-1&"年度算定基礎調査等に係る差額保険料納付状況】" -> 【令和7年度算定基礎調査等に係る差額保険料納付状況】 | BA3: 【口座振替制採用の有無等】
H4: ="令和 "&はじめに!C7-1&" 年度算定基礎調査等に係る差額保険料" -> 令和 7 年度算定基礎調査等に係る差額保険料 | V4: 差額保険料に係る | AB4: ⑰ | AH4: ⑱ | AM4: ⑲ | AQ4: ⑳ | AU4: ㉑
AH5: (⑬－⑭)に係る 納付済額 | AM5: ⑮に係る 納付済額 | AQ5: ⑯に係る 納付済額 | BA5: （１） 口座振替制採用の有無
H6: ⑬ 増額分 | O6: ⑭ 減額分 | V6: ⑮ | Y6: ⑯ | AB6: (⑬－⑭＋⑮＋⑯) | AU6: (⑱＋⑲＋⑳) | BB6: １ 総コンシステムにより採用
V7: 追徴金 | Y7: 延滞金 | BB7: ２ 総コンシステム以外の方法により採用
BB8: ３ 採用していない
BA10: （２） 口座振替制利用率
BB11: 全委託事業数
BB13: 口座振替制利用事業数
BB15: 口座振替制利用率 | BN15: ％
B18: 小計 | O18: a | AB18: b | AU18: c
H19: =SUM(H8:N17) -> 0 | O19: =SUM(O8:U17) -> 0 | V19: =SUM(V8:X17) -> 0 | Y19: =SUM(Y8:AA17) -> 0 | AB19: =SUM(AB8:AG17) -> 0 | AH19: =SUM(AH8:AL17) -> 0 | AM19: =SUM(AM8:AP17) -> 0 | AQ19: =SUM(AQ8:AT17) -> 0 | AU19: =SUM(AU8:AY17) -> 0
B22: 前年度報奨金交付要件 労働保険料総額 | M22: 前年度報奨金交付要件 労働保険料納付済額
B24: d（イ＋b） | M24: e（ハ＋c）
B25: =SUM('1'!W27:AA41,'１②'!AB19:AG19) -> 0 | M25: =SUM('1'!AY27:BC41,'１②'!AU19:AY19) -> 0
B28: 【総 括】
B29: （１） 納付率等 | L29: （２） 報奨金算定基準日 | U29: （３） 定率及び定額による額（所定額）
B31: 納付率（ e／d ） | G31: =M25/B25 ->  | J31: ％ | M31: １ | N31: 7／10 | V31: 定率分 | AD31: 定額分 | BB31: 合計
B33: 前年度保険料 滞納処分の有無 | G33: 有 ・ 無 | M33: ２ | N33: ７／１8 | O33: 17 | AD33: 12400 | AJ33: 6200 | AP33: 6200 | AV33: 3100
N35: 7／１7の場合の理由 | V35: (ロ－a )×2.0／100 | AD35: ニ | AF35: 二×12,400円 | AJ35: ホ | AL35: ホ×6,200円 | AP35: へ | AR35: へ×6,200円 | AV35: ト | AX35: ト×3,100円 | BB35: α | BD35: ㉒
V36: =ROUNDDOWN((SUM('1'!AL27:AP41)-SUM(O8:U17))*2/100,-2) -> 0 | AD36: =SUM('1'!BD27:BE41) -> 0 | AF36: =AD36*12400 -> 0 | AJ36: =SUM('1'!BF27:BG41) -> 0 | AL36: =AJ36*6200 -> 0 | AP36: =SUM('1'!BH27:BI41) -> 0 | AR36: =AP36*6200 -> 0 | AV36: =SUM('1'!BJ27:BK41) -> 0 | AX36: =AV36*3100 -> 0 | BB36: =SUM(AD36,AJ36,AP36,AV36) -> 0 | BD36: =SUM(AF36,AL36,AR36,AX36) -> 0
B41: ※ 調整措置による額（㉒＞（ロ－a）の場合） | O41: ※ ５％減額措置による減 | AB41: ※ 交付予定額
B42: ㉓（ロ－a） | M42: 円 | O42: ㉔ | Z42: 円 | AB42: ㉕ | AM42: 円 | AR42: 【事務組合名】
AR43: =基本項目入力!B5 -> 0
D47: ※ | E47: 報奨金算定基準日が土曜日、日曜日又は国民の祝日に当たるときには、７月１０日又は7月１８日の直後のこれらの日以外の日を報奨金算定基準日とする。

Sheet 一般拠出
BM2: ( 枚のうち 枚目)
D5: ="【令和"&はじめに!C7&"年度一般拠出金納付状況】" -> 【令和8年度一般拠出金納付状況】
D6: 基幹番号 | J6: ① | Q6: ②
J7: ="令和"&はじめに!C7&"年度" -> 令和8年度 | Q7: ①に係る 納付済額
J8: 一般拠出金総額
D17: 合計 | J17: イ | Q17: ロ
J18: =SUM(J10:P16) -> 0 | Q18: =SUM(Q10:U16) -> 0
D20: ="【令和"&はじめに!C7-1&"年度算定基礎調査等に係る差額一般拠出金納付状況】" -> 【令和7年度算定基礎調査等に係る差額一般拠出金納付状況】
D21: 基幹番号 | J21: ="令和 "&はじめに!C7-1&" 年度算定基礎調査等に係る差額一般拠出金" -> 令和 7 年度算定基礎調査等に係る差額一般拠出金 | X21: 差額一般拠出金に係る | AF21: ⑦ | AL21: ⑧ | AQ21: ⑨ | AU21: ⑩ | AY21: ⑪
AL22: (③－④)に係る 納付済額 | AQ22: ⑤に係る 納付済額 | AU22: ⑥に係る 納付済額
J23: ③ 増額分 | Q23: ④ 減額分 | X23: ⑤ 追徴金 | AB23: ⑥ 延滞金 | AF23: (③－④＋⑤＋⑥) | AY23: (⑧＋⑨＋⑩)
D32: 合計 | Q32: a | AF32: b | AY32: c
J33: =SUM(J25:P31) -> 0 | Q33: =SUM(Q25:W31) -> 0 | X33: =SUM(X25:AA31) -> 0 | AB33: =SUM(AB25:AE31) -> 0 | AF33: =SUM(AF25:AK31) -> 0 | AL33: =SUM(AL25:AP31) -> 0 | AQ33: =SUM(AQ25:AT31) -> 0 | AU33: =SUM(AU25:AX31) -> 0 | AY33: =SUM(AY25:BC31) -> 0
D35: 合計 | J35: ="令和"&はじめに!C7&"年度報奨金交付"& CHAR(10) &"要件一般拠出金総額" -> 令和8年度報奨金交付 要件一般拠出金総額 | R35: ="令和"&はじめに!C7&"年度報奨金交付"& CHAR(10) &"要件一般拠出金納付済額" -> 令和8年度報奨金交付 要件一般拠出金納付済額
AJ36: 【事務組合名】
J37: d ( イ ＋ b ) | R37: e ( ロ ＋ c ) | AJ37: =基本項目入力!B5 -> 0
J38: =J18+AF33 -> 0 | R38: =Q18+AY33 -> 0
B40: 【総 括】
B41: （１） 納付率等 | Q41: （２） 報奨金算定基準日 | Z41: （３） 所定額（定率） | AS41: ※ ５％減額措置による減
R42: １ | S42: 7／10 | AS42: ⑬ | BC42: 円
C43: 納付率（ e／d ） | P43: ％ | AA43: 所定額
I44: =R38/J38 ->  | R44: ２ | S44: ７／１7
C46: 前年度一般拠出金の 滞納処分の有無 | I46: 有 ・ 無 | S46: ７／１8の場合の理由 | AA46: ⑫ | AB46: (ロ－a )×3.5／100 | AS46: ※ 交付予定額
AS47: ⑭ | BC47: 円
AA48: =ROUNDDOWN((Q18-Q33)*3.5/100,-2) -> 0
E51: ※ | F51: 報奨金算定基準日が土曜日、日曜日又は国民の祝日に当たるときには、７月１０日又は７月１８日の直後のこれらの日以外の日を報奨金算定基準日とする。

Sheet 一般拠出個別分
AO1: 年度途中（個別分）詳細
BM2: ( 枚のうち 枚目)
D5: ="【令和"&はじめに!C7&"年度一般拠出金納付状況】" -> 【令和8年度一般拠出金納付状況】
D6: 基幹番号 | J6: ① | Q6: ②
J7: =一般拠出!J7 -> 令和8年度 | Q7: ①に係る 納付済額
J8: =一般拠出!J8 -> 一般拠出金総額
D17: 合計 | J17: イ | Q17: ロ
J18: =SUM(J10:P16) -> 0 | Q18: =SUM(Q10:U16) -> 0
D20: ="【令和"&はじめに!C7&"年度算定基礎調査等に係る差額一般拠出金納付状況】" -> 【令和8年度算定基礎調査等に係る差額一般拠出金納付状況】
D21: 基幹番号 | J21: =一般拠出!J21 -> 令和 7 年度算定基礎調査等に係る差額一般拠出金 | X21: 差額一般拠出金に係る | AF21: ⑦ | AL21: ⑧ | AQ21: ⑨ | AU21: ⑩ | AY21: ⑪
AL22: (③－④)に係る 納付済額 | AQ22: ⑤に係る 納付済額 | AU22: ⑥に係る 納付済額
J23: ③ 増額分 | Q23: ④ 減額分 | X23: ⑤ 追徴金 | AB23: ⑥ 延滞金 | AF23: (③－④＋⑤＋⑥) | AY23: (⑧＋⑨＋⑩)
D32: 合計 | Q32: a | AF32: b | AY32: c
J33: =SUM(J25:P31) -> 0 | Q33: =SUM(Q25:W31) -> 0 | X33: =SUM(X25:AA31) -> 0 | AB33: =SUM(AB25:AE31) -> 0 | AF33: =SUM(AF25:AK31) -> 0 | AL33: =SUM(AL25:AP31) -> 0 | AQ33: =SUM(AQ25:AT31) -> 0 | AU33: =SUM(AU25:AX31) -> 0 | AY33: =SUM(AY25:BC31) -> 0
D35: 合計 | J35: ="令和"&はじめに!C7&"年度報奨金交付"& CHAR(10) &"要件一般拠出金総額" -> 令和8年度報奨金交付 要件一般拠出金総額 | R35: ="令和"&はじめに!C7&"年度報奨金交付"& CHAR(10) &"要件一般拠出金納付済額" -> 令和8年度報奨金交付 要件一般拠出金納付済額
AJ36: 【事務組合名】
J37: d ( イ ＋ b ) | R37: e ( ロ ＋ c ) | AJ37: =基本項目入力!B5 -> 0
J38: =J18+AF33 -> 0 | R38: =Q18+AY33 -> 0
B40: 【総 括】
B41: （１） 納付率等 | Q41: （２） 報奨金算定基準日 | Z41: （３） 所定額（定率） | AS41: ※ ５％減額措置による減
R42: １ | S42: ７／１０ | AS42: ⑬ | BC42: 円
C43: 納付率（ e／d ） | P43: ％ | AA43: 所定額
I44: =R38/J38 ->  | R44: ２ | S44: ７／１7
C46: 前年度一般拠出金の 滞納処分の有無 | I46: 有 ・ 無 | S46: ７／１８の場合の理由 | AA46: ⑫ | AB46: (ロ－a )×3.5／100 | AS46: ※ 交付予定額
AA47: =ROUNDDOWN((Q18-Q33)*3.5/100,-2) -> 0 | AS47: ⑭ | BC47: 円
E51: ※ | F51: 報奨金算定基準日が土曜日、日曜日又は国民の祝日に当たるときには、７月１０日又は７月１８日の直後のこれらの日以外の日を報奨金算定基準日とする。

Sheet 1電子
AL3: （ | AN3: 枚のうち | AS3: 枚目）
B4: 様式第１号
I5: ="令和 "&はじめに!C7&" 年度労働保険事務組合報奨金（電子化分）交付申請書" -> 令和 8 年度労働保険事務組合報奨金（電子化分）交付申請書
B8: 下記のとおり報奨金（電子化分）の交付を請求します。 | AJ8: 令和 | AN8: 年 | AQ8: 月 | AT8: 日
B11: =はじめに!C9 -> 愛知 | K11: 事務組合の 名称 | Q11: =基本項目入力!B5 -> 0 | AE11: 電話番号 | AK11: =基本項目入力!B8 -> 0
F12: 労働局長 殿
K14: 所在地 | Q14: =基本項目入力!B7 -> 0 | AE14: 郵便番号 | AK14: =基本項目入力!B6 -> 0
Z16: 記名又は署名
K17: 代表者氏名 | Q17: =基本項目入力!B9 -> 0 | AE17: 作成者氏名 | AK17: =基本項目入力!B10 -> 0
W20: (振込を希望する金融機関)
V21: 金融機関 | W21: （名称） | AM21: ゆうちょ銀行 | AN21: （名称）
W22: =IF(基本項目入力!C14="ゆうちょ銀行","",基本項目入力!B14) -> 0 | AC22: =基本項目入力!C14 -> 0 | AG22: =基本項目入力!B16 -> 0 | AK22: 店 | AN22: ='1'!BF7 -> 
B24: 基幹番号 | H24: 規模・保険関係別委託事業数 | W24: （口座） | Z24: =基本項目入力!C17 -> 0 | AD24: 第 | AE24: ='1'!AX11 -> 0 | AK24: 号
AN25: （所在地）
H26: 甲 | N26: 乙 | W26: （名義人） | Z26: ='1'!AR14 -> 0 | AN26: ='1'!BF12 -> 
H27: Ａ | K27: Ｂ | N27: Ａ | Q27: Ｂ
V31: 【総括】
V32: ⑤ | W32: 委託事業数 | AJ32: ⑥ | AK32: 所 定 額
V34: ①＋②＋③＋④ | AJ34: ⑤×800円 | AT34: 円
Z35: =SUM(H40:S40) -> 0 | AJ35: =Z35*800 -> 0
B39: 小 計 | H39: ① | K39: ② | N39: ③ | Q39: ④
H40: =SUM(H28:J38) -> 0 | K40: =SUM(K28:M38) -> 0 | N40: =SUM(N28:P38) -> 0 | Q40: =SUM(Q28:S38) -> 0

Sheet 1-2
BO2: 様式第１号の２
C6: ㉖ | L6: ㉗ | P6: ㉘ | T6: ㉙ | X6: ㉚ | AB6: ㉛ | AF6: ㉜ | AK6: ㉝ | AO6: ㉞ | AS6: ㉟ | AW6: ㊱ | BA6: ㊲ | BE6: ㊳ | BI6: ㊴
C7: 口座振替納付書の労働保険番号 | L7: 第１期分等労働保険料の額 | P7: ㉗の労働保険料として口座振替納付日までに委託事業主から交付された額 | T7: 口座振替納付済額（現に口座振替納付した㉗の額） | X7: ㉗のうち口座振替納付後１週間以内に納付された額 | AB7: ㉘のうち算定対象事業※の前年度確定保険料不足額納付済額 | AF7: ル≦オの範囲内で口座振替納付されたものとする労働保険番号（該当するものに○を付し、（ ）に㉗の額を記入） | AK7: ㉛のうち口座振替納付されたものとするもの（㉜で○印を付したものについて㉛の額を転記） | AO7: 算定対象事業※の前年度概算保険料等納付済額（確定保険料の額を超えるときは、確定保険料の額） | AS7: ㉝+㉞（申請書の⑤の額） | AW7: 当年度一般拠出金の額 | BA7: ㊱の一般拠出金として口座振替納付日までに委託事業主から交付された額 | BE7: 口座振替納付済額（現に口座振替納付した㊱の額） | BI7: ㊱のうち口座振替納付後１週間以内に納付された額
C13: 基幹番号 | I13: 枝番号
AG14: （ | AJ14: ）
AG15: （ | AJ15: ）
AG16: （ | AJ16: ）
AG17: （ | AJ17: ）
AG18: （ | AJ18: ）
AG19: （ | AJ19: ）
AG20: （ | AJ20: ）
C21: 合 計 | P21: チ | T21: リ | X21: ヌ | AF21: ル
P22: =SUM(P14:S20) -> 0 | T22: =SUM(T14:W20) -> 0 | X22: =SUM(X14:AA20) -> 0 | AF22: （ | AG22: =SUM(AH14:AI20) -> 0 | AJ22: ） | AW22: =SUM(AW14:AZ20) -> 0 | BA22: =SUM(BA14:BD20) -> 0 | BE22: =SUM(BE14:BH20) -> 0 | BI22: =SUM(BI14:BL20) -> 0
AF23: オ
AJ24: チの額又は（リ＋ヌ）
AJ25: の額のうち低いほうの額
AF26: =IF(P22<(T22+X22),P22,(T22+X22)) -> 0 | AR26: 【事務組合名】
AR27: =基本項目入力!B5 -> 0
C30: ※「算定対象事業」とは、報奨金の申請に係る15人以下事業をいう。
C32: 注１ | E32: ㉖は、基幹番号の若い方から順に記入すること。（納付書に枝番号があるものは、基幹番号が同一のもので枝番号のないものの後に続けて記入する。）
C33: 注２ | E33: ㉛は、口座振替納付日までに交付を受けていた算定対象事業の前年度確定保険料不足額で、口座振替納付したものを含め、口座振替納付日から起算して７日を経過した日までに納付した額を記入すること。
E34: また、口座振替納付日までに事務組合へ納付されなかった算定対象事業の前年度確定保険料不足額の一覧表（未交付の算定対象事業場名（労働保険番号を付記）及びその未交付の前年度確定保険料不足額を記載した一覧
E35: 表）を添付すること。
C36: 注３ | E36: ㉜については、ルの額がオの額を超えない範囲内で、有利な順序で口座振替納付がなされたものとするよう事務組合が選択することができること。
C37: 注４ | E37: ㉞には、報奨金算定基準日までに納付した算定対象事業の前年度概算保険料、増加概算保険料及び保険料率の引上げによる追加徴収保険料の額（その額が前年度確定保険料の額を超えるときは、前年度確定保険料の額）
E38: の合計額を記入すること。

Sheet 1-3
BM2: 様式第１号の３
C5: ㉖ | L5: ㉗ | Q5: ㉘ | V5: ㉙ | AA5: ㊵ | AD5: ㊶ | AI5: ㉞ | AN5: ㉟ | AS5: ㊱ | AX5: ㊲ | BC5: ㊳ | BH5: ㊴
C6: 口座振替納付書の労働保険番号 | L6: 第１期分等労働保険料の額 | Q6: ㉗の労働保険料として口座振替納付日までに委託事業主から交付された額 | V6: 口座振替納付済額（現に口座振替納付した㉗の額。口座振替納付されなかったものは、「振替不能」と記入） | AA6: 振替不能がやむを得ず生じた口座振替納付書（該当するものに○印を付す。） | AD6: 口座振替納付日から起算して７日を経過した日までに納付した算定対象事業※の前年度確定保険料不足額納付済額（㉚に「振替不能」と記したもので㊵に○を付さなかったものは「0」とする。） | AI6: 算定対象事業※の前年度概算保険料等納付済額（確定保険料の額を超えるときは、確定保険料の額） | AN6: ㊶+㉞（申請書の⑤の額） | AS6: 当年度一般拠出金の額 | AX6: ㊱の一般拠出金として口座振替納付日までに委託事業主から交付された額 | BC6: 口座振替納付済額（現に口座振替納付した㊱の額） | BH6: ㊱のうち口座振替納付後１週間以内に納付された額
C16: 基幹番号 | I16: 枝番号
C24: 合 計 | L24: =SUM(L17:P23) -> 0 | Q24: =SUM(Q17:U23) -> 0 | V24: =SUM(V17:Z23) -> 0 | AA24: =SUM(AA17:AC23) -> 0 | AS24: =SUM(AS17:AW23) -> 0 | AX24: =SUM(AX17:BB23) -> 0 | BC24: =SUM(BC17:BG23) -> 0 | BH24: =SUM(BH17:BL23) -> 0
AS27: 【事務組合名】
C28: ※「算定対象事業」とは、報奨金の申請に係る15人以下事業をいう。 | AS28: =基本項目入力!B5 -> 0
D30: 注１ | E30: ㉖は、基幹番号の若い方から順に記入すること。（納付書に枝番号があるものは、基幹番号が同一のもので枝番号のないものの後に続けて記入する。）
D31: 注２ | E31: ㊵の欄に○印を付したもの（㉗に記入した額と㉘に記入した額が同額であるものを除く。）に関しては、振替不能となった委託事業主からの労働保険料の未交付に関し、委託事業主に対して口座振替納付日までに２度以
E32: 上にわたり交付を請求したこと及び事務組合がその請求等に当たって確認した当該委託事業主から同日までに労働保険料の交付を受けられないこととなった事情を証する書面を添付すること。
D33: 注３ | E33: ㊶欄には、算定対象事業の前年度確定保険料不足額で、口座振替納付によったものを含め、口座振替納付日から起算して７日を経過した日までに納付したものの合計額を記入すること。
E34: なお、口座振替納付日から起算して７日を経過した日の翌日において納付していない当該算定対象事業の前年度確定保険料不足額の一覧表（未納付の算定対象事業場名（労働保険番号を付記）及びその未納付の前年度
E35: 確定保険料額を記載した一覧表）を添付すること。
D36: 注４ | E36: ㉞欄には、報奨金算定基準日までに納付した算定対象事業の前年度概算保険料、増加概算保険料及び保険料率の引上げによる追加徴収保険料の額（その額が前年度確定保険料の額を超えるときは、前年度確定保険料の額）
E37: の合計額を記入すること。

Sheet 別紙1-1
A1: 交付申請時に提出する証明書の様式（事務組合が直接受け取る場合）
A2: ="（ 令和"&はじめに!C7-1&"年度交付分に係る受入及び支出）" -> （ 令和7年度交付分に係る受入及び支出）
B4: 受入証明書
A5: 令和 年 月 日に交付を受けた報奨金 円の支出の振替については、下記のとおりです。
B7: 収 入 事 項 | C7: 受入金額 | D7: 備考
B12: 計
B15: 支出証明書(振替）
A16: 報奨金 円の支出（振替）については、下記のとおりです。 なお、振替期日は各備考欄に記載しております。
B18: 支 出 事 項 | C18: 支出総額 | D18: 報奨金支出額 | E18: 備考
B30: 計
B31: 当該受入証明書、支出証明書については、正当なものであることを証します。
B32: 年 月 日
C33: 証明者

Sheet 別紙1-2
A1: 交付申請時に提出する証明書の様式（母体団体が受け取る場合）
A2: ="（ 令和"&はじめに!C7-1&"年度交付分に係る受入及び支出）" -> （ 令和7年度交付分に係る受入及び支出）
B4: 受入証明書（繰入）
A5: 令和 年 月 日に交付を受けた報奨金 円の受入及び繰入については、下記のとおりです。 なお、繰入期日は令和 年 月 日です。
B6: 受 入 | D6: 繰 入
B7: 収 入 事 項 | C7: 受入金額 | D7: 収 入 事 項 | E7: 繰入金額
B13: 計
B15: 支出証明書（振替）
A16: 令和 年 月 日に繰入れ済の報奨金 円の支出の振り替えについては、下記のとおりです。
B18: 支 出 事 項 | C18: 支出総額 | D18: 報奨金支出額 | E18: 備考
B29: 計
B30: 当該受入証明書（繰入）・支出証明書（振替）については、正当なものであることを証します。
B31: 年 月 日 | C31: 証明者
B32: 年 月 日 | C32: 証明者

Sheet 別紙1-3
B1: ="「令和"&はじめに!C7&"年度交付分に係る支出予定内容」の様式" -> 「令和8年度交付分に係る支出予定内容」の様式
B3: 支 出 事 項 | C3: 令和5年度 報奨金支出予定額 | D3: 備 考
B30: 計
B31: 上記支出予定内容については、以上のものであることを証します。
B32: 令和 年 月 日 | C32: 証明者

Sheet 1電子例
B2: 作成例
AL3: （ | AM3: 1 | AN3: 枚のうち | AR3: 1 | AS3: 枚目）
B4: 様式第１号
I5: 令和○年度労働保険事務組合報奨金（電子化分）交付申請書
B8: 下記のとおり報奨金（電子化分）の交付を請求します。 | AJ8: 令和 | AL8: ○ | AN8: 年 | AO8: ○ | AQ8: 月 | AR8: ○ | AT8: 日
B11: =はじめに!C9 -> 愛知 | K11: 事務組合の 名称 | Q11: ○○××会 | AE11: 電話番号 | AK11: ０５９－２２６－ＸＸＸＸ
F12: 労働局長 殿
K14: 所在地 | Q14: 名古屋市伏見X－X－X | AE14: 郵便番号 | AK14: ５１４－８５２４
Z16: 記名又は署名
K17: 代表者氏名 | Q17: 会長 ○○ ○○ | AE17: 作成者氏名 | AK17: ○○ ○○
W20: (振込を希望する金融機関)
V21: 金融機関 | W21: （名称） | AC21: 銀 行 信用金庫 信用組合 労働金庫 | AK21: 店 | AM21: ゆうちょ銀行 | AN21: （名称）
W22: ○○○○ | AG22: ○○支
B24: 基幹番号 | H24: 規模・保険関係別委託事業数 | W24: （口座） | Z24: 当座 | AD24: 第 | AE24: ３０ＸＸＸＸＸ | AK24: 号
Z25: 普通 | AN25: （所在地）
H26: 甲 | N26: 乙 | W26: （名義人） | Z26: 労働保険事務組合 ○○××会
H27: Ａ | K27: Ｂ | N27: Ａ | Q27: Ｂ
B28: 9 | C28: △ | D28: △ | E28: △ | F28: △ | G28: 0 | H28: 438 | K28: 0 | N28: 207 | Q28: 0
B29: 9 | C29: △ | D29: △ | E29: △ | F29: △ | G29: 2 | H29: 0 | K29: 52 | N29: 0 | Q29: 36
B30: 9 | C30: △ | D30: △ | E30: △ | F30: △ | G30: 5 | H30: 0 | K30: 19 | N30: 0 | Q30: 26
B31: 9 | C31: △ | D31: △ | E31: △ | F31: △ | G31: 6 | H31: 0 | K31: 18 | N31: 0 | Q31: 8 | V31: 【総括】
V32: ⑤ | W32: 委託事業数 | AJ32: ⑥ | AK32: 所 定 額
V34: ①＋②＋③＋④ | AJ34: ⑤×800円 | AT34: 円
Z35: =SUM(H40:S40) -> 804 | AL35: =Z35*800 -> 643200
B39: 小 計 | H39: ① | K39: ② | N39: ③ | Q39: ④
H40: =SUM(H28:J38) -> 438 | K40: =SUM(K28:M38) -> 89 | N40: =SUM(N28:P38) -> 207 | Q40: =SUM(Q28:S38) -> 70

Sheet 別紙1-1例
A1: 交付申請時に提出する証明書の記載例（事務組合が直接受け取る場合）
A2: （令和○年度交付分に係る受入及び支出）
B4: 受入証明書
A5: 令和〇年〇月○日に交付を受けた報奨金 2,000,000円の支出の振り替えについては、下記のとおりです。
B7: 収 入 事 項 | C7: 受入金額 | D7: 備考
B8: 款 その他収入 | C8: =C10 -> 2000000 | D8: R○.○.○受け入れ
B9: 項 報 奨 金 | C9: =C10 -> 2000000
B10: 目 報 奨 金 | C10: 2000000
B12: 計 | C12: =C8 -> 2000000
B15: 支出証明書(振替）
A17: 報奨金 2,000,000円の支出（振替）については、下記のとおりです。 なお、振替期日は各備考欄に記載しております。
B18: 支 出 事 項 | C18: 支出総額 | D18: 報奨金支出額 | E18: 備考
B19: １．人 件 費 | C19: =SUM(C20:C21) -> 4800000 | D19: =SUM(D20:D21) -> 1125000 | E19: R○.○.○振り替え
B20: ○○ ○○ | C20: 2400000 | D20: 665000
B21: △△ △△ | C21: 2400000 | D21: 460000
B23: ２．賃貸借料 | C23: =SUM(C24:C24) -> 1000000 | D23: =SUM(D24:D24) -> 200000 | E23: R○.○.○振り替え
B24: 事務所借り上げ料 | C24: 1000000 | D24: 200000
B25: ３．旅 費 | C25: =SUM(C26:C26) -> 30000 | D25: =SUM(D26:D26) -> 30000 | E25: R○.○.○振り替え
B26: 労働保険料徴収等 | C26: 30000 | D26: 30000
B27: ４．その他の経費 | D27: =SUM(D28:D28) -> 645000 | E27: R○.○.○振り替え
B28: 自動車積立金等 | D28: 645000
B30: 計 | D30: =D19+D23+D25+D27 -> 2000000
B32: 当該受入証明書、支出証明書については、正当なものであることを証します。
B33: 令和○年○月○日 証明者 労働保険事務組合 代表 〇〇 ○○

Sheet 別紙1-2例
A2: （令和○年度交付分に係る受入及び支出）
B4: 受入証明書（繰入）
A5: 令和○年○月○日に交付を受けた報奨金200万円の受入及び繰入については、下記のとおりです。 なお、繰入期日は令和○年○月○日です。
B6: 受 入 | D6: 繰 入
B7: 収 入 事 項 （事務組合） | C7: 受入金額 | D7: 収 入 事 項 （○○本体会計） | E7: 繰入金額
B8: 款 その他収入 | C8: =C10 -> 2000000 | D8: 款 その他収入 | E8: =C10 -> 2000000
B9: 項 報 奨 金 | C9: =C10 -> 2000000 | D9: 項 雑 収 入 | E9: =E10 -> 2000000
B10: 目 報 奨 金 | C10: 2000000 | D10: （目 報 奨 金） | E10: 2000000
B11: うち母体会計繰入分 | C11: -2000000 | D11: 事務組合からの繰入
B13: 計 | C13: =C8 -> 2000000 | E13: =E8 -> 2000000
B15: 支出証明書（振替）
A16: 令和○年○月○日に繰入れ済みの報奨金 2,000,000円の支出の振り替えについては、下記のとおりです。 なお、振替期日は令和○年○月○日に一括して振り替えました。
B18: 支 出 事 項 | C18: 支出総額 （一般会計より支出） | D18: 報奨金支出額 | E18: 備考
B19: １．人 件 費 | C19: =SUM(C20:C21) -> 4800000 | D19: =SUM(D20:D21) -> 1125000 | E19: R○.○.○振り替え
B20: ○○ ○○ | C20: 2400000 | D20: 665000
B21: △△ △△ | C21: 2400000 | D21: 460000
B23: ２．賃貸借料 | C23: =SUM(C24:C24) -> 1000000 | D23: =SUM(D24:D24) -> 200000 | E23: R○.○.○振り替え
B24: 事務所借り上げ料 | C24: 1000000 | D24: 200000
B25: ３．旅 費 | C25: =SUM(C26:C26) -> 30000 | D25: =SUM(D26:D26) -> 30000 | E25: R○.○.○振り替え
B26: 労働保険料徴収等 | C26: 30000 | D26: 30000
B27: ４．その他の経費 | D27: =SUM(D28:D28) -> 645000 | E27: R○.○.○振り替え
B28: 自動車積立金等 | D28: 645000
B30: 計 | D30: =D19+D23+D25+D27 -> 2000000
B32: 当該受入証明書（繰入）・支出証明書（振替）については、正当なものであることを証します。
B33: 令和○年○月○日 証明者 労働保険事務組合 代表 ○○ ○○
B35: 令和○年○月○日 証明者 ××経営労務研究会 代表 ●● ●●

Sheet 別紙1-3例
B1: 「令和○年度交付分に係る支出予定内容」の記載例
B3: 支 出 事 項 | C3: 令和5年度 報奨金支出予定額 | D3: 備 考
B4: １．人 件 費 | C4: =SUM(C5:C6) -> 1125000
B5: ○○ ○○ | C5: 665000
B6: ○○ ○○ | C6: 460000
B7: ２．賃貸借料 | C7: =SUM(C8:C8) -> 200000
B8: 事務所借り上げ料 | C8: 200000
B9: ３．旅 費 | C9: =SUM(C10:C11) -> 30000
B10: 労働保険料徴収 | C10: 10000
B11: 行政機関への報告関係 | C11: 20000
B12: ４．その他の経費 | C12: =C13+C15+C17+C19+C21+C23+C25 -> 645000
B13: ①各種積立金 | C13: =SUM(C14:C14) -> 200000
B14: 自動車購入積立金 | C14: 200000
B15: ②繰 越 金 | C15: =SUM(C16:C16) -> 0
B17: ③ＰＣ購入等 | C17: =SUM(C18:C18) -> 0
B19: ④システム開発等 | C19: =SUM(C20:C20) -> 200000
B20: ソフトウェア改修 | C20: 200000
B21: ⑤各種会費負担金 | C21: =SUM(C22:C22) -> 0
B23: ⑥光 熱 水 料 | C23: =SUM(C24:C24) -> 200000
B24: 事務室光熱水料 | C24: 200000
B25: ⑦消耗品購入費用 | C25: =SUM(C26:C26) -> 45000
B26: ＯＡ（コピー機）トナー等 | C26: 45000
B27: ⑧各種委託費 | C27: =SUM(C28:C28) -> 0
B30: 計 | C30: =C4+C7+C9+C12 -> 2000000
B31: 上記支出予定内容については、以上のものであることを証します。
B32: 令和○年○月○日 証明者 労働保険事務組合 代表 ○○ ○○
